{"text_format":"1","workbook":"xlsx","n_sheets":5,"sheets":["Cover","Parameters","Testing Param","FR1","FR2"],"not_rendered":{"charts":0,"images":0,"macros":1,"external_links":0,"defined_names":0,"comments":0,"pivot_tables":0},"unopened":[],"bounds":{"document_bytes":16777216,"sheet_cells":100000,"rows_first":2000,"rows_last":500,"rows_between":2000,"halvings":0,"cell_chars":16384,"cell_head_chars":4096},"cells_cut":0,"cells_raw":0,"read":"whole","date_system":"1900"}

{"sheet":"Cover","index":0,"n_rows":8,"n_cols":10,"rows_kept":8,"cut":false,"hidden":false,"merged":[]}
[]
[null,"3GPP TSG-RAN WG4 Meeting #98-e",null,null,null,null,null,null,null,"R4-210xxxx"]
[null,"Online meeting, Jan. 25th -Feb. 5th, 2021"]
[]
[null,"Source: ZTE "]
[null,"Title: Updated simulation results collection on BS demodulation requirements for 2-step RACH"]
[null,"Agenda: 7.18.2"]
[null,"Document for: Information"]

{"sheet":"Parameters","index":1,"n_rows":12,"n_cols":5,"rows_kept":12,"cut":false,"hidden":false,"merged":[[1,2,1,4],[6,2,6,4],[7,2,7,4]]}
[]
[null,null,"Parameters for deriving performance requirements"]
[null,null,"Ideal Span Threshold",2,"dB"]
[null,null,"Impairment Span Threshold",4,"dB"]
[]
[]
[null,"Notes","1. Call function DerivingPerfReq()"]
[null,null,"2. If the ruls does not apply, or fails, -100dB or less will be returned"]
[null,null,null,-100,"Not enough input"]
[null,null,null,-101,"Input should be pairs"]
[null,null,null,-102,"Too large span for impairment"]
[null,null,null,-103,"After removal iteration, not enough input"]

{"sheet":"Testing Param","index":2,"n_rows":26,"n_cols":9,"rows_kept":26,"cut":false,"hidden":false,"merged":[[21,8,22,8],[23,8,24,8],[7,6,15,6],[14,7,15,7],[2,1,2,2],[3,1,3,2],[21,2,24,2],[21,3,22,3],[23,3,24,3],[21,7,24,7],[21,6,24,6],[21,1,24,1],[1,1,1,3],[1,6,1,8],[14,8,15,8],[16,6,17,6],[18,6,20,6],[14,3,15,3],[16,1,17,1],[18,1,20,1],[2,6,2,7],[3,6,3,7],[4,6,5,7],[6,6,6,7],[4,1,5,2],[6,1,6,2],[7,1,15,1],[14,2,15,2]]}
[]
[null,"Test parameters for FR1",null,null,null,null,"Test parameters for FR2"]
[null,"Parameter",null,"Value",null,null,"Parameter",null,"Value"]
[null,"Transform precoding",null,"Disabled",null,null,"Transform precoding",null,"Disabled"]
[null,"Channel bandwidth",null,"15 kHz SCS: 10 MHz",null,null,"Channel bandwidth",null,"60 kHz SCS: 50 MHz"]
[null,null,null,"30 kHz SCS: 40 MHz",null,null,null,null,"120 kHz SCS: 100 MHz"]
[null,"MCS",null,1,null,null,"MCS",null,2]
[null,"DM-RS","DM-RS configuration type",1,null,null,"DM-RS","DM-RS configuration type",1]
[null,null,"DM-RS duration","single-symbol DM-RS",null,null,null,"DM-RS duration","single-symbol DM-RS"]
[null,null,"DM-RS position (l0)",2,null,null,null,"DM-RS position (l0)",2]
[null,null,"Additional DM-RS position","pos2 or pos1",null,null,null,"Additional DM-RS position","pos1"]
[null,null,"Number of DM-RS CDM group(s) without data",2,null,null,null,"Number of DM-RS CDM group(s) without data",2]
[null,null,"Ratio of PUSCH EPRE to DM-RS EPRE","-3 dB",null,null,null,"Ratio of PUSCH EPRE to DM-RS EPRE","-3 dB"]
[null,null,"DM-RS port","{0}",null,null,null,"DM-RS port","{0}"]
[null,null,"DM-RS sequence generation","NID0=0, nSCID = 0",null,null,null,"DM-RS sequence generation","NID0=0, nSCID = 0"]
[]
[null,"Time domain resource assignment","PUSCH mapping type","Both A and B",null,null,"Time domain resource assignment","PUSCH mapping type","Type B"]
[null,null,"Allocation length",14,null,null,null,"Allocation length",10]
[null,"Frequency domain resource assignment","RB assignment","2 PRBs",null,null,"Frequency domain resource assignment","RB assignment","2 PRBs"]
[null,null,"Starting PRB index",0,null,null,null,"Starting PRB index",0]
[null,null,"Frequency hopping","Disabled",null,null,null,"Frequency hopping","Disabled"]
[null,"Time offset (TO) Cycling (µs)","start:step:end","15k SCS: 0:0.2:3.8",null,null,"Time Offset (TO) cycling level (µs)","sart:step:end","SCS 60k: 0:0.1:0.6"]
[]
[null,null,null,"30k SCS: 0:0.1:2",null,null,null,null,"SCS 120k: 0:0.1:0.5"]
[]
[null,"Test Metric","BLER",0.01,null,null,"Test Metric","BLER",0.01]

{"sheet":"FR1","index":3,"n_rows":8,"n_cols":24,"rows_kept":8,"cut":false,"hidden":false,"merged":[[4,1,7,1],[4,2,7,2],[4,3,7,3],[4,4,5,4],[6,4,7,4],[2,4,3,4],[2,7,3,7],[2,12,2,13],[2,1,3,1],[2,2,3,2],[2,3,3,3],[2,5,3,5],[2,6,3,6],[2,8,3,8],[2,10,3,10],[2,11,3,11],[2,14,2,15],[2,16,2,17],[2,18,2,19],[2,20,2,21],[2,22,2,23]]}
[]
[]
[null,"Number of TX antennas","Number of RX antennas","Cyclic prefix","Mapping Type","TO cycling (start:step:end)\n[µs]","Channel Bandwidth [MHz]","SCS [kHz]","Propagation conditions and correlation matrix (Annex G)","FRC","TS38.104 Req.\n[dB]","TS38.141 Req.\n[dB]","Samsung",null,"ZTE",null,"Ericsson",null,"Nokia",null,"Huawei",null,"Intel"]
[null,null,null,null,null,null,null,null,null,"(Annex A)",null,null,"Ideal [dB]","Impairment [dB]","Ideal [dB]","Impairment [dB]","Ideal [dB]","Impairment [dB]","Ideal [dB]","Impairment [dB]","Ideal [dB]","Impairment [dB]","Ideal [dB]","Impairment [dB]"]
[null,1,2,"Normal","Type A","0:0.2:3.8",10,15,"TDLC300-100 low","G-FR1-A8-1, or\nG-FR1-A8-2",{"$f":"DerivingPerfReq(M5:X5)","v":7.3},{"$f":"IF(K5>-100,K5+0.6,K5)","v":7.8999999999999995},5.26,{"$f":"M5+2","v":7.26},3.5,{"$f":"O5+2.5","v":6},4.8,7.1,5.7,{"$f":"S5+2.5","v":8.1999999999999993},4,6.5,4.8,7.3]
[null,null,null,null,null,"0:0.1:2",40,30,"TDLC300-100 low","G-FR1-A8-3, or\nG-FR1-A8-2",{"$f":"DerivingPerfReq(M6:X6)","v":7.1},{"$f":"IF(K6>-100,K6+0.6,K6)","v":7.6999999999999993},5.21,{"$f":"M6+2","v":7.21},3,{"$f":"O6+2.5","v":5.5},4.7,6.8,5.3,{"$f":"S6+2.5","v":7.8},3.7,6.2,5,7.5]
[null,null,null,null,"Type B","0:0.2:3.8",10,15,"TDLC300-100 low","G-FR1-A8-1, or\nG-FR1-A8-2",{"$f":"DerivingPerfReq(M7:X7)","v":7},7.6,5.24,7.24,4.0999999999999996,6.6,4.9000000000000004,7.1,5.9,8.4,3.9,6.4,5,7.5]
[null,null,null,null,null,"0:0.1:2",40,30,"TDLC300-100 low","G-FR1-A8-1, or\nG-FR1-A8-2",{"$f":"DerivingPerfReq(M8:X8)","v":7.6},8.1999999999999993,5.14,7.14,3,5.5,4.5999999999999996,7,5.4,7.9,3.9,6.4,6,8.5]

{"sheet":"FR2","index":4,"n_rows":5,"n_cols":24,"rows_kept":5,"cut":false,"hidden":false,"merged":[[3,1,4,1],[1,12,1,13],[1,8,2,8],[1,1,2,1],[1,2,2,2],[1,3,2,3],[1,5,2,5],[1,6,2,6],[1,7,2,7],[1,4,2,4],[3,2,4,2],[3,3,4,3],[3,4,4,4],[1,10,2,10],[1,11,2,11],[1,14,1,15],[1,16,1,17],[1,18,1,19],[1,20,1,21],[1,22,1,23]]}
[]
[null,"Number of TX antennas","Number of RX antennas","Cyclic prefix","Mapping Type","TO cycling  (start:step:end)\n[µs]","Channel Bandwidth [MHz]","SCS [kHz]","Propagation conditions and correlation matrix (Annex G)","FRC","TS38.104 Req.","TS38.141 Req.","Samsung",null,"ZTE",null,"Ericsson",null,"Nokia",null,"Huawei",null,"Intel"]
[null,null,null,null,null,null,null,null,null,"(Annex A)",null,null,"Ideal [dB]","Impairment [dB]","Ideal [dB]","Impairment [dB]","Ideal [dB]","Impairment [dB]","Ideal [dB]","Impairment [dB]","Ideal [dB]","Impairment [dB]","Ideal [dB]","Impairment [dB]"]
[null,1,2,"Normal","Type B","0:0.1:0.6",50,60,"TDLA30-300 low","G-FR2-A9-1",{"$f":"DerivingPerfReq(M4:X4)","v":8.6999999999999993},{"$f":"IF(K4>-100,K4+0.6,K4)","v":9.2999999999999989},6.43,8.43,5,{"$f":"O4+3","v":8},6.3,8.8000000000000007,6.8,{"$f":"S4+2.5","v":9.3000000000000007},5.7,8.1999999999999993,6.9,9.4]
[null,null,null,null,null,"0:0.1:0.5",100,120,"TDLA30-300 low","G-FR2-A9-1",{"$f":"DerivingPerfReq(M5:X5)","v":8.3000000000000007},{"$f":"IF(K5>-100,K5+0.6,K5)","v":8.9},6.02,8.02,5.0999999999999996,{"$f":"O5+3","v":8.1},6,8,6.4,{"$f":"S5+2.5","v":8.9},5.3,7.8,6.3,8.8000000000000007]